Cogmind - Beta 12 *** ADVENTURER MODE // 2023.03.16 @ 22:03:05 Player: soporte tecnico Result: Destroyed by B-75 Beast with Magnetic Acceleration Cannon Performance ------------- Evolutions (4) 2000 Regions Visited (9) 1800 Robots Destroyed (12) 60 Value Destroyed (338) 338 Prototype IDs (11) 220 Alien Tech Used (1) 200 Bonus (908) 908 TOTAL SCORE: 5526 Bonus ------- Follower Combat Kills 108 Entered DSFs 500 Met Data Miner 300 Cogmind --------- Core Integrity 0/850 Matter 300/300 Energy 100/100 System Corruption 0% Temperature Cool (0) Movement Core (50) Location -5/Proximity Caves Parts ------- > --- POWER (2) -------- (None) > --- PROPULSION (4) --- (None) > --- UTILITY (8) ------ System Shield > --- WEAPON (2) ------- (None) > --- INVENTORY (5) ---- Deuterium Engine Small Storage Unit Katana Peak State ------------ > --- POWER ------------ Light Nuclear Core Light Nuclear Core > --- PROPULSION ------- Gravmag System Gravmag System Gravmag System Gravmag System > --- UTILITY ---------- Small Storage Unit Compact Matter Pod Weight Redist. System Advanced Terrain Scanner Improved Terrain Scan Processor System Shield Drone Bay > --- WEAPON ----------- Heavy Mace > --- INVENTORY -------- Deuterium Engine Light Nuclear Core Gravmag System Gravmag System Gravmag System Small Storage Unit Core Expander Katana [Rating: 50] Favorites ----------- Power Light Nuclear Core Engine Deuterium Engine Power Core Light Nuclear Core Propulsion Gravmag System Leg Aluminum Leg Hover Unit Gravmag System Flight Unit Flight Unit Utility Small Storage Unit Device Weight Redist. System Storage Small Storage Unit Processor Improved Terrain Scan Processor Hackware System Shield Weapon Heavy Mace Energy Gun Small Laser Ballistic Gun Light Assault Rifle Impact Weapon Heavy Mace Build | -11 -10 -9 -8 -7 -7 -6 -6 -6 -5 ------- Run | Jun Mat Mat Mat Fac DSF Fac Low Dat Pro Slots Evolved 8 | . . 2 2 2 . 2 . . . Power 1 | . . . . 1 . . . . . Propulsion 2 | . . 1 1 . . . . . . Utility 5 | . . 1 1 1 . 2 . . . Weapon . | . . . . . . . . . . Parts Attached 45 | 6 4 4 10 3 7 6 1 . 4 Power 9 | 1 1 . 3 1 2 . . . 1 Engine 6 | 1 1 . 3 1 . . . . . Core 3 | . . . . . 2 . . . 1 Reactor . | . . . . . . . . . . Propulsion 21 | 2 3 1 4 2 5 1 . . 3 Treads . | . . . . . . . . . . Leg 3 | 2 1 . . . . . . . . Wheel . | . . . . . . . . . . Hover 17 | . 2 . 4 2 5 1 . . 3 Flight 1 | . . 1 . . . . . . . Utility 10 | 1 . 1 2 . . 5 1 . . Device 6 | . . 1 1 . . 3 1 . . Storage 2 | 1 . . . . . 1 . . . Processor 1 | . . . . . . 1 . . . Hackware 1 | . . . 1 . . . . . . Protection . | . . . . . . . . . . Artifact . | . . . . . . . . . . Weapon 5 | 2 . 2 1 . . . . . . Energy Gun 1 | 1 . . . . . . . . . Energy Cannon . | . . . . . . . . . . Ballistic Gun 1 | 1 . . . . . . . . . Ballistic Cannon . | . . . . . . . . . . Launcher . | . . . . . . . . . . Special Weapon . | . . . . . . . . . . Impact Weapon 3 | . . 2 1 . . . . . . Slashing Weapon . | . . . . . . . . . . Piercing Weapon . | . . . . . . . . . . Special Melee Weapon . | . . . . . . . . . . Unidentified Prototypes 1 | . . . . . . . 1 . . Parts Lost 24 | . 2 1 2 . 2 . . . 17 Power 4 | . 1 . . . . . . . 3 Propulsion 11 | . . 1 2 . 1 . . . 7 Utility 7 | . . . . . 1 . . . 6 Weapon 2 | . 1 . . . . . . . 1 Highest Loss Streak 16 | . 2 1 2 . 1 . . . 16 To Critical Strikes . | . . . . . . . . . . Average Slot Usage (%) 83 | . 80 63 82 82 84 82 92 87 67 Engine 4 | . 14 11 9 14 12 . . . . Core 7 | . . . . . 2 13 12 12 8 Leg 2 | . 21 . . . . . . . . Hover 23 | . 6 20 32 29 30 25 25 25 17 Device 14 | . . 9 15 15 15 10 19 18 13 Storage 11 | . 14 11 9 7 7 12 12 12 11 Processor 3 | . . . . . . 6 6 6 5 Hackware 5 | . . . 8 7 7 6 6 6 6 Ballistic Gun 1 | . 14 . . . . . . . . Impact Weapon 6 | . . 10 9 7 7 6 6 6 5 Naked Turns . | . . . . . . . . . . Heaviest Build 27 | 12 12 10 18 27 27 26 26 26 26 Greatest Support 42 | 20 20 18 30 30 42 42 42 42 42 Greatest Overweight (x) 2 | . . . . . . . . . 2 Average Overweight (x) . | . . . . . . . . . . Largest Inventory Capacity 8 | 8 8 8 8 8 8 8 8 8 8 Average Capacity 7 | 7 8 8 8 8 8 8 8 8 8 Most Carried 8 | 5 3 5 8 5 8 8 8 7 7 Average Carried 5 | 1 2 3 5 4 7 7 7 7 5 Final Capacity 8 | 8 8 8 8 8 8 8 8 8 5 Final Carried 8 | 1 2 3 6 5 8 7 7 7 3 Class Distribution -------------------- 80% | Hacker-Mutant 19% | Mutant Dominant Class ---------------- Mutant | -10/Materials Mutant | -9/Materials Hacker-Mutant | -8/Materials Hacker-Mutant | -7/Factory Hacker-Mutant | -7/DSF Hacker-Mutant | -6/Factory Hacker-Mutant | -6/Lower Caves Hacker-Mutant | -6/Data Miner Hacker-Mutant | -5/Proximity Caves Resources | -11 -10 -9 -8 -7 -7 -6 -6 -6 -5 ----------- Run | Jun Mat Mat Mat Fac DSF Fac Low Dat Pro Matter Collected 756 | 237 78 33 . . 142 124 13 . 129 Remotely . | . . . . . . . . . . Salvage Created 384 | . 312 33 . . 16 . . . 23 Parts 17 | . 17 . . . . . . . . Haulers Intercepted . | . . . . . . . . . . Recyclers Shooed . | . . . . . . . . . . Parts Field Recycled . | . . . . . . . . . . Retrieved Matter . | . . . . . . . . . . Parts Self-Destructed 11 | . . . . . . . . . 11 Prevented . | . . . . . . . . . . Kills | -11 -10 -9 -8 -7 -7 -6 -6 -6 -5 ------- Run | Jun Mat Mat Mat Fac DSF Fac Low Dat Pro Combat Hostiles Destroyed 12 | . 7 3 . . 1 . . . 1 Melee 1 | . . 1 . . . . . . . Guns 7 | . 7 . . . . . . . . Classes Destroyed 3 | . 1 1 . . 1 . . . . Swarmer 4 | . . 3 . . . . . . 1 Cutter 1 | . . . . . 1 . . . . Grunt 7 | . 7 . . . . . . . . Best Kill Streak 5 | . 5 3 . . 1 . . . 1 Combat Bots Only 5 | . 5 3 . . 1 . . . 1 Max Kills in Single Turn 1 | . 1 1 . . 1 . . . 1 Gunslinging . | . . . . . . . . . . Exploded . | . . . . . . . . . . Melee 1 | . . 1 . . . . . . . Uniques/NPCs Destroyed . | . . . . . . . . . . Combat | -11 -10 -9 -8 -7 -7 -6 -6 -6 -5 -------- Run | Jun Mat Mat Mat Fac DSF Fac Low Dat Pro Damage Taken 2635 | . 419 94 199 . 143 . 16 . 1764 Core 1018 | . 52 4 67 . 28 . . . 867 Absorbed by Shields . | . . . . . . . . . . Regen/Repaired (Parts) 25 | . . . . . . 25 . . . Core Remaining (%) 92 | 100 79 99 87 . 96 . . . . Volleys Fired 35 | . 35 . . . . . . . . Largest 2 | . 2 . . . . . . . . Hottest 60 | . 60 . . . . . . . . Shots Fired 69 | . 69 . . . . . . . . Gun 69 | . 69 . . . . . . . . Cannon . | . . . . . . . . . . Launcher . | . . . . . . . . . . Special . | . . . . . . . . . . Kinetic 35 | . 35 . . . . . . . . Thermal 34 | . 34 . . . . . . . . Explosive . | . . . . . . . . . . Electromagnetic . | . . . . . . . . . . Robot Hit Streak 24 | . 24 . . . . . . . . Robot Miss Streak 3 | . 3 . . . . . . . . Penetration Max . | . . . . . . . . . . Secondary Targets . | . . . . . . . . . . Shots Hit Robots 71 | . 58 6 . . 2 . . . 5 Core Hits 20 | . 19 1 . . . . . . . Critical Kills . | . . . . . . . . . . Critical Parts Destroyed 2 | . . 1 . . . . . . 1 Critical Strikes 2 | . . 1 . . . . . . 1 Smash 2 | . . 1 . . . . . . 1 Melee Attacks 29 | . . 6 . . 3 . 12 1 7 Impact 29 | . . 6 . . 3 . 12 1 7 Slashing . | . . . . . . . . . . Piercing . | . . . . . . . . . . Sneak Attacks . | . . . . . . . . . . Combat Hostiles . | . . . . . . . . . . Follow-up Attacks . | . . . . . . . . . . Damage Inflicted 1069 | . 553 222 . . 86 . . . 208 Guns 545 | . 545 . . . . . . . . Cannons . | . . . . . . . . . . Explosions . | . . . . . . . . . . Melee 516 | . . 222 . . 86 . . . 208 Ramming 8 | . 8 . . . . . . . . Kinetic 222 | . 222 . . . . . . . . Thermal 323 | . 323 . . . . . . . . Explosive . | . . . . . . . . . . Electromagnetic . | . . . . . . . . . . Impact 516 | . . 222 . . 86 . . . 208 Slashing . | . . . . . . . . . . Piercing . | . . . . . . . . . . Highest Corruption . | . . . . . . . . . . Average Corruption . | . . . . . . . . . . Corruption Purged . | . . . . . . . . . . Corruption Blocked . | . . . . . . . . . . Overload Shots . | . . . . . . . . . . Overflow Damage 159 | . . 79 . . 2 . . . 78 Projectiles . | . . . . . . . . . . Explosions . | . . . . . . . . . . Melee 159 | . . 79 . . 2 . . . 78 Knockbacks 3 | . . 1 . . 1 . . . 1 Impact 3 | . . 1 . . 1 . . . 1 Kinetic . | . . . . . . . . . . Secondary . | . . . . . . . . . . Self-Inflicted Damage 4 | . 4 . . . . . . . . Shots . | . . . . . . . . . . Rammed 1 | . 1 . . . . . . . . Targets Rammed 1 | . 1 . . . . . . . . Kicked . | . . . . . . . . . . Crushed . | . . . . . . . . . . Highest Temperature 216 | . 216 . 14 . . . . . . Average Temperature 107 | . 110 . 7 . . . . . . Received Heat Transfer 465 | . 297 33 90 . . . 9 . 36 Effects 1 | . 1 . . . . . . . . Interference 1 | . 1 . . . . . . . . Siege Activations . | . . . . . . . . . . Robots Corrupted . | . . . . . . . . . . Combat Hostiles . | . . . . . . . . . . Parts Fried 3 | . . 2 . . 1 . . . . Impact Corruptions 10 | . . 5 . . 1 . . . 4 Robots Melted . | . . . . . . . . . . Combat Hostiles . | . . . . . . . . . . Parts Melted . | . . . . . . . . . . Heat Transferred 750 | . 750 . . . . . . . . Parts Sabotaged . | . . . . . . . . . . Parts Stolen . | . . . . . . . . . . Parts Stripped . | . . . . . . . . . . Power Chain Reactions . | . . . . . . . . . . Missiles Intercepted . | . . . . . . . . . . Alert | -11 -10 -9 -8 -7 -7 -6 -6 -6 -5 ------- Run | Jun Mat Mat Mat Fac DSF Fac Low Dat Pro Peak Influence 165 | . 118 165 95 56 99 42 . . . Initial 59 | . . . 59 33 34 40 . . . Average 56 | . 50 82 64 35 41 41 . . . Maximum Alert Level . | . . . . . . . . . . Low Security (%) 100 | 100 100 100 100 100 100 100 . . . Level 1 . | . . . . . . . . . . Level 2 . | . . . . . . . . . . Level 3 . | . . . . . . . . . . Level 4 . | . . . . . . . . . . Level 5 . | . . . . . . . . . . High Security . | . . . . . . . . . . Max Security . | . . . . . . . . . . Squads Dispatched 5 | . 1 . 1 . 2 1 . . . Investigation 2 | . 1 . 1 . . . . . . Extermination 1 | . . . . . . 1 . . . Reinforcement 2 | . . . . . 2 . . . . Assault . | . . . . . . . . . . Garrison . | . . . . . . . . . . Intercept . | . . . . . . . . . . Searches Triggered . | . . . . . . . . . . Construction Impeded . | . . . . . . . . . . Haulers Reinforced . | . . . . . . . . . . Active Scanning Responses . | . . . . . . . . . . Cargo Convoy Interrupts . | . . . . . . . . . . Stealth | -11 -10 -9 -8 -7 -7 -6 -6 -6 -5 --------- Run | Jun Mat Mat Mat Fac DSF Fac Low Dat Pro Distress Signals 7 | . 1 3 . . . . . . 3 Communications Jammed . | . . . . . . . . . . Distress Signals . | . . . . . . . . . . Times Spotted 78 | . 9 14 11 1 8 . 9 . 26 Peak Tracking Total 9 | . 4 8 9 1 3 1 3 . 9 Tactical Retreats 14 | . . 2 2 . 2 . 3 . 5 Traps | -11 -10 -9 -8 -7 -7 -6 -6 -6 -5 ------- Run | Jun Mat Mat Mat Fac DSF Fac Low Dat Pro Traps Triggered 5 | . . 1 3 . 1 . . . . Indirectly . | . . . . . . . . . . Trap Hack Attempts . | . . . . . . . . . . Triggered . | . . . . . . . . . . Disarmed . | . . . . . . . . . . Reprogrammed . | . . . . . . . . . . Reused . | . . . . . . . . . . Traps Extracted . | . . . . . . . . . . Installed . | . . . . . . . . . . Triggered . | . . . . . . . . . . Machines | -11 -10 -9 -8 -7 -7 -6 -6 -6 -5 ---------- Run | Jun Mat Mat Mat Fac DSF Fac Low Dat Pro Machines Disabled . | . . . . . . . . . . Max in Single Turn . | . . . . . . . . . . Machines Repaired . | . . . . . . . . . . Machines Sabotaged . | . . . . . . . . . . Overloaded Fab Kills . | . . . . . . . . . . Hacking | -11 -10 -9 -8 -7 -7 -6 -6 -6 -5 --------- Run | Jun Mat Mat Mat Fac DSF Fac Low Dat Pro Machines Accessed 15 | . 1 3 3 2 . 2 . 4 . Terminals 9 | . 1 3 3 2 . . . . . Fabricators . | . . . . . . . . . . Repair Stations 2 | . . . . . . 2 . . . Recycling Units . | . . . . . . . . . . Scanalyzers . | . . . . . . . . . . Garrison Access . | . . . . . . . . . . Total Hacks 64 | . 3 8 8 4 . 7 . 34 . Successful 56 | . 3 5 6 4 . 4 . 34 . Failed 8 | . . 3 2 . . 3 . . . Catastrophic . | . . . . . . . . . . Database Lockouts . | . . . . . . . . . . Manual . | . . . . . . . . . . Terminals 23 | . 3 8 8 4 . . . . . Fabricators . | . . . . . . . . . . Repair Stations 7 | . . . . . . 7 . . . Recycling Units . | . . . . . . . . . . Scanalyzers . | . . . . . . . . . . Garrison Access . | . . . . . . . . . . Terminal Hacks 52 | . 3 5 6 4 . . . 34 . Record 13 | . . . . 2 . . . 11 . Part Schematic 12 | . . . . . . . . 12 . Robot Schematic 8 | . . . . . . . . 8 . Robot Analysis 1 | . . 1 . . . . . . . Prototype ID Bank 3 | . . . . . . . . 3 . Open DSF 1 | . . . . 1 . . . . . Alert Level 3 | . 1 1 1 . . . . . . Unreport Threat 2 | . 1 1 . . . . . . . Locate Traps 3 | . 1 1 . 1 . . . . . Dispatch Records 1 | . . . 1 . . . . . . Maintenance Status 1 | . . . 1 . . . . . . Registered Components 1 | . . . 1 . . . . . . Zone Layout 3 | . . 1 2 . . . . . . Fabricator Hacks . | . . . . . . . . . . Repair Station Hacks 4 | . . . . . . 4 . . . Scan Component 2 | . . . . . . 2 . . . Repair 2 | . . . . . . 2 . . . Recycling Unit Hacks . | . . . . . . . . . . Scanalyzer . | . . . . . . . . . . Garrison Access Hacks . | . . . . . . . . . . Unauthorized Hacks . | . . . . . . . . . . Terminals . | . . . . . . . . . . Fabricators . | . . . . . . . . . . Repair Stations . | . . . . . . . . . . Recycling Units . | . . . . . . . . . . Scanalyzers . | . . . . . . . . . . Garrison Access . | . . . . . . . . . . Data Cores Recovered . | . . . . . . . . . . Used . | . . . . . . . . . . Hacking Detections 9 | . 1 3 2 1 . 2 . . . Full Trace Events 1 | . 1 . . . . . . . . Feedback Events . | . . . . . . . . . . Feedback Blocked . | . . . . . . . . . . Robot Schematics Acquired 8 | . . . . . . . . 8 . Robots Built . | . . . . . . . . . . Authchips . | . . . . . . . . . . Time . | . . . . . . . . . . Total Robot Build Rating . | . . . . . . . . . . Part Schematics Acquired 12 | . . . . . . . . 12 . Parts Built . | . . . . . . . . . . Authchips . | . . . . . . . . . . Time . | . . . . . . . . . . Total Part Build Rating . | . . . . . . . . . . Parts Repaired 2 | . . . . . . 2 . . . Time 76 | . . . . . . 76 . . . Parts Recycled . | . . . . . . . . . . Recycled Matter . | . . . . . . . . . . Retrieved Matter . | . . . . . . . . . . Retrieved Components . | . . . . . . . . . . Parts Scanalyzed . | . . . . . . . . . . Part Schematics Acquired . | . . . . . . . . . . Parts Damaged . | . . . . . . . . . . Bothacking | -11 -10 -9 -8 -7 -7 -6 -6 -6 -5 ------------ Run | Jun Mat Mat Mat Fac DSF Fac Low Dat Pro Used RIF Installer . | . . . . . . . . . . Robots Hacked . | . . . . . . . . . . Non-combat . | . . . . . . . . . . Combat . | . . . . . . . . . . Robot Hacks Applied . | . . . . . . . . . . Relay Couplers Released . | . . . . . . . . . . Fabnet Peak Effective % . | . . . . . . . . . . Robots Rewired . | . . . . . . . . . . Allies Hacked . | . . . . . . . . . . Hacks Repelled . | . . . . . . . . . . Allies | -11 -10 -9 -8 -7 -7 -6 -6 -6 -5 -------- Run | Jun Mat Mat Mat Fac DSF Fac Low Dat Pro Total Allies 1 | . . . . . . . . . 1 Largest Group 1 | . . . . . . . . . 1 Highest-Rated Group 96 | . . . . . . . . . 96 Highest-Rated Ally 96 | . . . . . . . . . 96 Total Orders . | . . . . . . . . . . Ally Attacks 17 | . . . . . . . . . 17 Total Damage 519 | . . . . . . . . . 519 Kills 6 | . . . . . . . . . 6 Allies Corrupted . | . . . . . . . . . . Allies Melted . | . . . . . . . . . . Intel | -11 -10 -9 -8 -7 -7 -6 -6 -6 -5 ------- Run | Jun Mat Mat Mat Fac DSF Fac Low Dat Pro Robot Analysis Total 1 | . . 1 . . . . . . . Derelict Logs Recovered 1 | . . . . . . . 1 . . Drone Launches 2 | . . . . . . . 2 . . Drone Recoveries . | . . . . . . . . . . Exploration | -11 -10 -9 -8 -7 -7 -6 -6 -6 -5 ------------- Run | Jun Mat Mat Mat Fac DSF Fac Low Dat Pro Turns Passed 4033 | 47 413 302 546 86 121 277 1320 560 361 Spaces Moved 4598 | 34 329 444 723 149 154 396 1668 201 500 Core 121 | 8 . . . . . . . . 113 Treads . | . . . . . . . . . . Legs 185 | 26 159 . . . . . . . . Wheels . | . . . . . . . . . . Hover 4292 | . 170 444 723 149 154 396 1668 201 387 Flight . | . . . . . . . . . . Fastest Speed 48 | 50 56 56 48 48 48 48 48 48 48 Average Speed 53 | 103 86 56 49 48 48 48 48 48 57 Slowest Speed 150 | 120 120 60 60 48 52 48 48 48 150 Overloaded Moves . | . . . . . . . . . . Propulsion Burnouts . | . . . . . . . . . . Robots Hopped . | . . . . . . . . . . Cave-ins Triggered . | . . . . . . . . . . Exploration Rate (%) 42 | 3 36 36 36 6 85 10 90 76 47 Regions Visited 9 Branch Regions 3 Pre-discovered Areas 2 | . . . . . . . 1 1 . Known Exits Taken 1 | . . . . 1 . . . . . Unknown Exits Taken 7 | 1 1 1 1 . . 1 1 1 . Scrap Searched 2 | . . . . . . . 2 . . Spaces Dug 12 | . . . . . . . 11 1 . Terrain Destroyed 12 | . . . . . . . 11 1 . Melee 12 | . . . . . . . 11 1 . Projectile . | . . . . . . . . . . AOE . | . . . . . . . . . . Terrain Rammed . | . . . . . . . . . . Walls Destroyed . | . . . . . . . . . . Machines Disabled . | . . . . . . . . . . Actions | -11 -10 -9 -8 -7 -7 -6 -6 -6 -5 --------- Run | Jun Mat Mat Mat Fac DSF Fac Low Dat Pro Total 6061 | 46 395 484 906 162 197 482 2166 662 561 Wait 1288 | . 17 25 160 9 8 76 482 461 50 Move 4589 | 33 328 443 722 148 153 395 1667 200 500 Hop . | . . . . . . . . . . Pick Up 47 | 7 6 3 11 2 11 5 2 . . Fast Attach 2 | . . . . . 2 . . . . Attach 33 | 6 3 3 5 3 1 6 2 . 4 Detach 2 | . . 2 . . . . . . . Swap 11 | . 1 1 5 . 4 . . . . Drop 19 | . 4 1 3 . 10 . 1 . . Fire 35 | . 35 . . . . . . . . Melee 29 | . . 6 . . 3 . 12 1 7 Ram 1 | . 1 . . . . . . . . Kick . | . . . . . . . . . . Crush . | . . . . . . . . . . Escape Stasis 5 | . . . . . 5 . . . . Rewire . | . . . . . . . . . . Trap . | . . . . . . . . . . Miscellaneous . | . . . . . . . . . . Route ------- -11/Junkyard -10/Materials -9/Materials -8/Materials -7/Factory (discovered 2 exits: *Fac / DSF) -7/DSF -6/Factory -6/Lower Caves -6/Data Miner -5/Proximity Caves History --------- Turn | Location | Event 9 | -11/Junkyard | Discovered new exit (range 15) 48 | -11/Junkyard | Entered Materials 320 | -10/Materials | Build established: Mutant 446 | -10/Materials | Discovered new exit (range 15) 461 | -10/Materials | Entered another Materials area 461 | -9/Materials | Evolved 2 slots: Propulsion x1, Utility x1 752 | -9/Materials | Discovered new exit (range 15) 763 | -9/Materials | Entered another Materials area 763 | -8/Materials | Evolved 2 slots: Propulsion x1, Utility x1 1111 | -8/Materials | Build established: Hacker-Mutant 1304 | -8/Materials | Discovered new exit (range 10) 1309 | -8/Materials | Entered Factory 1309 | -7/Factory | Evolved 2 slots: Power x1, Utility x1 1360 | -7/Factory | Discovered new exit (range 9) 1394 | -7/Factory | Identified exit to DSF 1395 | -7/Factory | Entered DSF 1437 | -7/DSF | Additional patrols routed to DSF 1481 | -7/DSF | Discovered new exit (range 16) 1516 | -7/DSF | Entered Factory 1516 | -6/Factory | Evolved 2 slots: Utility x2 1608 | -6/Factory | Repaired Weight Redist. System 1654 | -6/Factory | Repaired Gravmag System 1699 | -6/Factory | Discovered new exit (range 18) 1793 | -6/Factory | Entered Lower Caves 2914 | -6/Lower Caves | Found Alien Artifact 2916 | -6/Lower Caves | Identified Core Expander 2916 | -6/Lower Caves | Installed Core Expander, added new Utility slot 3109 | -6/Lower Caves | A Derelict revealed a hidden shortcut to meet someone special 3113 | -6/Lower Caves | Entered Data Miner 3113 | -6/Data Miner | Discovered new exit (range 6) 3123 | -6/Data Miner | Met Data Miner 3140 | -6/Data Miner | Learned location of Section 7 (-2) 3140 | -6/Data Miner | Acquired the access code to Warlord's prototype stash 3150 | -6/Data Miner | Received God Mode back door access code from Data Miner 3673 | -6/Data Miner | Entered Proximity Caves 3732 | -5/Proximity Caves | Escorted by Enhanced Grunt 3750 | -5/Proximity Caves | Attracted the attention of an 0b10 checkpoint 3779 | -5/Proximity Caves | Spotter reported a threat 3829 | -5/Proximity Caves | Spotter reported a threat 3967 | -5/Proximity Caves | Spotter reported a threat 3969 | -5/Proximity Caves | Core integrity fell below 50% 4017 | -5/Proximity Caves | Spotted B-75 Beast 4024 | -5/Proximity Caves | Core integrity fell below 20% 4033 | -5/Proximity Caves | Lost 16 parts (3p7n5u1w) 4034 | -5/Proximity Caves | Destroyed by B-75 Beast with Magnetic Acceleration Cannon Last Messages --------------- 03950_ Slug penetrates Wall. 03950_ Adv. Terrain Scanner destroyed. 03954_ Penetrated by Slug. 03957_ Acquired 18 matter. 03960_ Acquired 17 matter. 03960_ Slug penetrates Wall. 03967_ ALERT: Unidentified potential threat approaching Complex 0b10. 03969_ Destroyed VTOL Module. 03969_ S-27 Virus system corrupted by crushing effect. 03969_ S-27 Virus knocked back. 03970_ S-27 Virus system terminally corrupted. 03970_ Weight Redist. System destroyed. 03975_ Com. Matter Pod destroyed. 03979_ S-27 Virus IFF system glitched. 03986_ Hvy. Mace destroyed. 03990_ S-27 Virus IFF system glitched. 04002_ Imp. Terrain Scan Processor destroyed. 04010_ S-27 Virus destroyed. 04034_ Sml. Storage Unit destroyed. 04034_ Critical hit (Blast). Map ----- +----------------------------------------------------+ | ?????????????????????????????????????????????????? | | ?????????????????????????????????????????????????? | | ?????????????????????????????????????????????????? | | ?????????????????????????????????????????????????? | | ?????????????????????????????????????????????????? | | ?????????????????????????????????????????????????? | | ?????????????????????????????????????????????????? | | ?????????????????????????????????????????????????? | | ?????????????????????????????????????????????????? | | ?????????????????????????????????????????????????? | | ????????????????? #????????????????????????????? | | ????????????????? ##??????????????????????????? | | ???????????????? ### ???????????????????????? | | ???????????????? #???????????????????????? | | ????????????????? #???????????????????????? | | ?????????????????# #???????????????????????? | | ????????????????## #???????????????????????? | | ??????????????### BB #???????????????????????? | | ##???????????## BB ????????????????????????? | | ####??###### #?????????????????????????? | | #### #?????????????????????????? | | ;###??????#???????????????? | | ##??? ## ### ?????????? | | # ## ????????? | | ?# ????????? | | ??# % @ #??????????????? | | ??# #??????????????? | | ### % % ##### ##??????????????? | | ?# ### #?????????????????????? | | ?#%% ######;## ###### ##?????????????????????? | | ##= ######??##?#####????###??????????????????????? | | ##%[##???????#???????#???????????????????????????? | | #* ###?#??##?????#??????????????????????????????? | | # ##?#??#?#??#????????#????????????????????????? | | ##?#???#????????????????????????????????????? | | #?????????##??#?#??????????????????????????? | | #?#??###?#???????#????????????????????????? | | ## #?????????????#???????????????????????????? | | ### ###?#??????#?????????#???????????????????? | | ##?# #??#?#????#?#??#?#??????????????????????? | | ##??# ##????????????????#????????????????????? | | ######## ##?#?#???#???????#????????????????????? | | ## ##?# ###??????????????#???????????????????? | | #?## ###?#?#??????????????????????????????? | | ##### #?###?#???#????#?????????????????????? | | ##### #?#?#????#?#?????????????????????????? | | #?#????#?#???????????????????????????? | | ##?#??#??????????????????????????????? | | # #####???##???????????#???????????????????? | | #####???#????????????????????????????????? | +----------------------------------------------------+ Best States ------------- Heat Dissipation 37 Energy Generation 23 Energy Capacity 450 Matter Stores 450 Matter Capacity 450 Sight Range 16 Robot Scan Range 15 Terrain Scan Range 20 Terrain Scan Density 110 Additional Mass Support 6 Resistance: KI 20 Resistance: TH 20 Resistance: EX 20 Resistance: EM 20 Resistance: I 20 Resistance: S 20 Resistance: P 20 Evasion (%) 55 Offensive Hacking 10 Defensive Hacking 10 Item Schematics ----------------- Combat Drone Bay | -6/Data Miner | Free Lgt. Regenerative Plating | -6/Data Miner | Free Prc. Matter Filter | -6/Data Miner | Free Hvy. Proton Missile Launcher | -6/Data Miner | Free Cld. Nuclear Pulse Thruster | -6/Data Miner | Free Centrium Wheel | -6/Data Miner | Free Adv. Target Analyzer | -6/Data Miner | Free Hvy. Disruptor Cannon | -6/Data Miner | Free Point Defense System | -6/Data Miner | Free Nanoactuators | -6/Data Miner | Free Quantum Rifle | -6/Data Miner | Free Adv. Heavy Treads | -6/Data Miner | Free Robot Schematics ------------------ B-60 Warrior | -6/Data Miner | Free A-15 Conveyor | -6/Data Miner | Free Y-54 Guardian | -6/Data Miner | Free E-15 Imp | -6/Data Miner | Free M-30 Cleanser | -6/Data Miner | Free R-10 Processor | -6/Data Miner | Free G-67 Veteran | -6/Data Miner | Free W-44 Eye | -6/Data Miner | Free Fabricated ------------ Nothing Alien Tech Used ----------------- Core Expander Achievements -------------- Alien Tech Omniscient Cartographer Part-time Excavator The Oracle Challenges ------------ None Game ------ Seed NullAluminumRedirector Manual? 0 Play Time 00:59:07 Cumulative 12.4 hours Start 2023.03.16 @ 15:13:46 End 2023.03.16 @ 22:03:05 Sessions 5 Manual Loads 0 Difficulty Adventurer Special Mode None Game No. 11 Rogue 0 Adventurer 11 Explorer 0 Win Type - Total 0 Types 0/0/0/0/0/0/0/0/0 Lore% 16 Gallery% 14 Achievement% 14 Wizard Run 0 Options --------- ASCII 0 Keyboard 0 Movement Arrows Keybinds 0 Fullscreen 1 Font 12/Smallcaps Map View 76x50 Tactical HUD 1 Map Filters NONE Filters NONE Steam 1 RUN: 1ce08548-a605-4786-aab3-47e7820f1a97